[Event "EYCC Open-U14 2019"]
[Site "Bratislava"]
[Date "2019.08.08"]
[Round "7.29"]
[White "Wernberg, Hugo"]
[Black "Jun, Rudolf Jr."]
[Result "1/2-1/2"]
[ECO "B33"]
[WhiteElo "1963"]
[BlackElo "2200"]
[Annotator "NA"]
[PlyCount "117"]
[EventDate "2019.08.02"]
[EventType "swiss"]
[EventCountry "SVK"]
[SourceTitle "playchess.com"]
[Source "ChessBase"]
[SourceQuality "1"]
[TimeControl "40/5400+30:1800+30"]

1. e4 {[%emt 0:00:00]} c5 {[%emt 0:00:00]} 2. Nf3 {[%emt 0:00:00]} Nc6 {[%emt 0:00:02]} 3. d4 {[%emt 0:00:00]} cxd4 {[%emt 0:00:09]} 4. Nxd4 {[%emt 0:00:00]} Nf6 {[%emt 0:00:06]} 5. Nc3 {[%emt 0:00:00]} e5 {[%emt 0:00:08]} 6. Ndb5 {[%emt 0:00:08]} d6 {[%emt 0:00:34]} 7. Bg5 {[%emt 0:00:18]} a6 {[%emt 0:00:14]} 8. Na3 {[%emt 0:00:08]} b5 {[%emt 0:00:10]} 9. Nd5 {[%emt 0:00:11]} Be7 {[%emt 0:00:19]} 10. Bxf6 {[%emt 0:00:23]} Bxf6 {[%emt 0:00:11]} 11. c3 {[%emt 0:00:21]} O-O {[%emt 0:00:37]} 12. Nc2 {[%emt 0:00:09]} Bg5 {[%emt 0:01:52]} 13. a4 {[%emt 0:00:24]} bxa4 {[%emt 0:00:20]} 14. Rxa4 {[%emt 0:00:11]} Kh8 {[%emt 0:07:00]} 15. h4 {[%emt 0:02:42]} Bh6 {[%emt 0:01:44]} 16. b4 {[%emt 0:16:30]} f5 {[%emt 0:08:22]} 17. exf5 {[%emt 0:15:45]} Bxf5 {[%emt 0:00:33]} 18. Nce3 {[%emt 0:01:14]} Be4 {[%emt 0:03:45]} 19. Rxa6 {[%emt 0:02:51]} Rxa6 {[%emt 0:01:30]} 20. Bxa6 {[%emt 0:00:12]} Ne7 {[%emt 0:05:32]} 21. Nxe7 {[%emt 0:11:02]} Qxe7 {[%emt 0:00:13]} 22. O-O {[%emt 0:03:41]} d5 {[%emt 0:12:06]} 23. Bd3 {[%emt 0:07:06]} d4 {[%emt 0:13:44]} 24. Ng4 {[%emt 0:11:25]} Bb7 {[%emt 0:06:27]} 25. Nxh6 {[%emt 0:09:05]} gxh6 {[%emt 0:00:06]} 26. f3 {[%emt 0:08:19]} dxc3 {[%emt 0:01:09]} 27. Qe2 {[%emt 0:01:53]} Re8 {[%emt 0:02:13]} 28. Be4 {[%emt 0:04:11]} Qxb4 {[%emt 0:04:03]} 29. Bxb7 {[%emt 0:00:16]} Qxb7 {[%emt 0:00:05]} 30. Qc4 {[%emt 0:03:14]} Qb6+ {[%emt 0:02:55]} 31. Rf2 {[%emt 0:00:34]} Qd4 {[%emt 0:04:55]} 32. Qf7 {[%emt 0:00:43]} Qd8 {[%emt 0:00:38]} 33. Qc4 {[%emt 0:00:21]} Qd1+ {[%emt 0:00:39]} 34. Kh2 {[%emt 0:00:23]} Qd4 {[%emt 0:00:05]} 35. Qc6 {[%emt 0:00:25]} Qxh4+ {[%emt 0:12:40]} 36. Kg1 {[%emt 0:00:15]} Rd8 {[%emt 0:03:42]} 37. Qxc3 {[%emt 0:00:51]} Qf4 {[%emt 0:01:08]} 38. Qc2 {[%emt 0:01:23]} Qd4 {[%emt 0:01:17]} 39. Qe4 {[%emt 0:01:30]} Qc5 {[%emt 0:00:52]} 40. Qc2 {[%emt 0:00:00]} Qe3 {[%emt 0:00:00]} 41. Qe2 {[%emt 0:06:56]} Qg5 {[%emt 0:01:06]} 42. Qc2 {[%emt 0:03:45]} Qe3 {[%emt 0:01:17]} 43. Qe2 {[%emt 0:00:24]} Qd4 {[%emt 0:00:48]} 44. Qe4 {[%emt 0:02:26]} Qxe4 {[%emt 0:02:03]} 45. fxe4 {[%emt 0:00:16]} Rd4 {[%emt 0:00:13]} 46. Rf7 {[%emt 0:02:24]} Rxe4 {[%emt 0:00:07]} 47. Kf2 {[%emt 0:00:38]} Rg4 {[%emt 0:00:13]} 48. Kf3 {[%emt 0:01:05]} Rg5 {[%emt 0:00:09]} 49. Ra7 {[%emt 0:01:02]} Kg8 {[%emt 0:00:19]} 50. Re7 {[%emt 0:03:27]} h5 {[%emt 0:00:25]} 51. Ke4 {[%emt 0:03:03]} Rg4+ {[%emt 0:03:35]} 52. Kf3 {[%emt 0:00:59]} Rg5 {[%emt 0:00:04]} 53. Ke4 {[%emt 0:00:13]} Rxg2 {[%emt 0:00:05]} 54. Rxe5 {[%emt 0:00:14]} Kg7 {[%emt 0:00:14]} 55. Kf3 {[%emt 0:00:45]} Rh2 {[%emt 0:00:15]} 56. Kg3 {[%emt 0:00:23]} Rh1 {[%emt 0:00:10]} 57. Kg2 {[%emt 0:00:42]} Rc1 {[%emt 0:00:06]} 58. Rxh5 {[%emt 0:00:14]} Kg6 {[%emt 0:00:07]} 59. Ra5 {[%emt 0:00:14]} 1/2-1/2

[Event "EYCC Open-U14 2019"]
[Site "Bratislava"]
[Date "2019.08.08"]
[Round "7.30"]
[White "Kalosha, Zhiulien Oleksii"]
[Black "Krupa, Miroslav"]
[Result "0-1"]
[ECO "B90"]
[WhiteElo "1936"]
[BlackElo "2114"]
[Annotator "NA"]
[PlyCount "117"]
[EventDate "2019.08.02"]
[EventType "swiss"]
[EventCountry "SVK"]
[SourceTitle "playchess.com"]
[Source "ChessBase"]
[SourceQuality "1"]
[TimeControl "40/5400+30:1800+30"]

1. e4 {[%emt 0:00:00]} c5 {[%emt 0:00:00]} 2. Nf3 {[%emt 0:00:00]} d6 {[%emt 0:00:00]} 3. d4 {[%emt 0:00:00]} cxd4 {[%emt 0:00:00]} 4. Nxd4 {[%emt 0:00:00]} Nf6 {[%emt 0:00:02]} 5. Nc3 {[%emt 0:00:00]} a6 {[%emt 0:00:12]} 6. f3 {[%emt 0:00:03]} e6 {[%emt 0:00:17]} 7. Be3 {[%emt 0:00:41]} b5 {[%emt 0:00:25]} 8. Qd2 {[%emt 0:00:17]} Nbd7 {[%emt 0:00:27]} 9. g4 {[%emt 0:03:01]} Nb6 {[%emt 0:00:33]} 10. O-O-O {[%emt 0:00:31]} Bb7 {[%emt 0:00:46]} 11. g5 {[%emt 0:00:35]} Nfd7 {[%emt 0:00:07]} 12. h4 {[%emt 0:10:05]} Ne5 {[%emt 0:02:11]} 13. Nb3 {[%emt 0:09:11]} Nbc4 {[%emt 0:08:13]} 14. Bxc4 {[%emt 0:00:36]} Nxc4 {[%emt 0:00:07]} 15. Qf2 {[%emt 0:00:06]} Nxe3 {[%emt 0:02:58]} 16. Qxe3 {[%emt 0:00:07]} Qc7 {[%emt 0:11:54]} 17. Kb1 {[%emt 0:01:25]} Be7 {[%emt 0:01:38]} 18. Qd4 {[%emt 0:01:33]} O-O {[%emt 0:00:25]} 19. Qd2 {[%emt 0:03:59]} b4 {[%emt 0:01:49]} 20. Ne2 {[%emt 0:00:30]} d5 {[%emt 0:00:56]} 21. e5 {[%emt 0:04:24]} Qxe5 {[%emt 0:04:19]} 22. f4 {[%emt 0:00:07]} Qc7 {[%emt 0:01:29]} 23. Nbd4 {[%emt 0:00:23]} e5 {[%emt 0:28:24]} 24. fxe5 {[%emt 0:03:52]} Qxe5 {[%emt 0:00:27]} 25. Rdf1 {[%emt 0:01:54]} Rae8 {[%emt 0:10:00]} 26. Rf5 {[%emt 0:01:55]} Qc7 {[%emt 0:04:40]} 27. h5 {[%emt 0:01:07]} Bc8 {[%emt 0:01:53]} 28. Rff1 {[%emt 0:02:45]} Qe5 {[%emt 0:01:51]} 29. Rhg1 {[%emt 0:01:51]} Bc5 {[%emt 0:05:58]} 30. Qd3 {[%emt 0:17:11]} Qe3 {[%emt 0:01:24]} 31. Qd1 {[%emt 0:00:32]} Re4 {[%emt 0:03:17]} 32. Nb3 {[%emt 0:06:56]} Ba7 {[%emt 0:01:08]} 33. Ng3 {[%emt 0:07:22]} Rg4 {[%emt 0:01:32]} 34. Ne2 {[%emt 0:04:36]} Qxg5 {[%emt 0:01:52]} 35. Rxg4 {[%emt 0:00:51]} Bxg4 {[%emt 0:00:10]} 36. Nbc1 {[%emt 0:00:53]} Qxh5 {[%emt 0:00:39]} 37. Rh1 {[%emt 0:00:29]} Qe5 {[%emt 0:00:39]} 38. Qe1 {[%emt 0:01:48]} Re8 {[%emt 0:01:54]} 39. Qh4 {[%emt 0:00:18]} Qe4 {[%emt 0:03:12]} 40. Ng3 {[%emt 0:00:00]} Qg6 {[%emt 0:00:00]} 41. Re1 {[%emt 0:00:57]} Be6 {[%emt 0:01:02]} 42. Nge2 {[%emt 0:00:18]} Qe4 {[%emt 0:00:33]} 43. Nf4 {[%emt 0:00:15]} Qf5 {[%emt 0:01:00]} 44. Ncd3 {[%emt 0:00:38]} h6 {[%emt 0:01:42]} 45. Re5 {[%emt 0:00:27]} Qh7 {[%emt 0:09:33]} 46. Nxd5 {[%emt 0:02:25]} Bb8 {[%emt 0:02:41]} 47. Re1 {[%emt 0:02:09]} a5 {[%emt 0:00:45]} 48. Nc5 {[%emt 0:02:00]} Bd6 {[%emt 0:05:43]} 49. Nxe6 {[%emt 0:02:24]} fxe6 {[%emt 0:00:21]} 50. Qg4 {[%emt 0:05:43]} h5 {[%emt 0:01:45]} 51. Nf6+ {[%emt 0:02:48]} Kf7 {[%emt 0:02:35]} 52. Nxh5 {[%emt 0:00:28]} Qh6 {[%emt 0:05:26]} 53. Rf1+ {[%emt 0:02:04]} Ke7 {[%emt 0:00:11]} 54. Nxg7 {[%emt 0:01:20]} Rf8 {[%emt 0:00:30]} 55. Re1 {[%emt 0:00:48]} Be5 {[%emt 0:00:45]} 56. Nh5 {[%emt 0:08:00]} Rf5 {[%emt 0:00:25]} 57. Rh1 {[%emt 0:02:27]} Bh2 {[%emt 0:00:55]} 58. Qh4+ {[%emt 0:01:08]} Kf7 {[%emt 0:02:35]} 59. Qxh2 {[%emt 0:00:37]} 0-1

[Event "EYCC Open-U14 2019"]
[Site "Bratislava"]
[Date "2019.08.08"]
[Round "7.31"]
[White "Musyuk, Lior"]
[Black "Velkoski, Stojan"]
[Result "1-0"]
[ECO "C55"]
[WhiteElo "2236"]
[BlackElo "1389"]
[Annotator "NA"]
[PlyCount "59"]
[EventDate "2019.08.02"]
[EventType "swiss"]
[EventCountry "SVK"]
[SourceTitle "playchess.com"]
[Source "ChessBase"]
[SourceQuality "1"]
[TimeControl "40/5400+30:1800+30"]

1. e4 {[%emt 0:00:00]} e5 {[%emt 0:00:00]} 2. Nf3 {[%emt 0:00:00]} Nc6 {[%emt 0:00:00]} 3. d4 {[%emt 0:00:13]} exd4 {[%emt 0:00:00]} 4. Bc4 {[%emt 0:00:11]} Nf6 {[%emt 0:00:00]} 5. e5 {[%emt 0:00:37]} d5 {[%emt 0:00:00]} 6. Bb5 {[%emt 0:00:11]} Ne4 {[%emt 0:00:09]} 7. Nxd4 {[%emt 0:00:41]} Bd7 {[%emt 0:00:09]} 8. Bxc6 {[%emt 0:00:21]} bxc6 {[%emt 0:00:06]} 9. O-O {[%emt 0:00:40]} Bc5 {[%emt 0:00:11]} 10. Be3 {[%emt 0:02:54]} Bb6 {[%emt 0:00:09]} 11. f3 {[%emt 0:00:41]} Ng5 {[%emt 0:00:10]} 12. Qd2 {[%emt 0:02:57]} Ne6 {[%emt 0:02:55]} 13. Nb3 {[%emt 0:12:51]} Qe7 {[%emt 0:10:27]} 14. f4 {[%emt 0:00:57]} Rd8 {[%emt 0:05:11]} 15. Bxb6 {[%emt 0:11:20]} cxb6 {[%emt 0:00:31]} 16. f5 {[%emt 0:00:58]} Nc5 {[%emt 0:07:15]} 17. Nc3 {[%emt 0:09:51]} O-O {[%emt 0:09:20]} 18. Rae1 {[%emt 0:00:38]} Rfe8 {[%emt 0:02:11]} 19. Qf4 {[%emt 0:05:43]} g6 {[%emt 0:08:32]} 20. Nd4 {[%emt 0:04:44]} gxf5 {[%emt 0:08:10]} 21. e6 {[%emt 0:08:56]} Nxe6 {[%emt 0:02:55]} 22. Qg3+ {[%emt 0:00:17]} Kh8 {[%emt 0:03:57]} 23. Nxf5 {[%emt 0:00:36]} Qf8 {[%emt 0:03:06]} 24. Nd6 {[%emt 0:02:11]} Re7 {[%emt 0:01:20]} 25. Qe5+ {[%emt 0:00:58]} Qg7 {[%emt 0:02:53]} 26. Nxf7+ {[%emt 0:01:02]} Rxf7 {[%emt 0:00:11]} 27. Rxf7 {[%emt 0:00:12]} Qxe5 {[%emt 0:00:51]} 28. Rxe5 {[%emt 0:00:02]} Be8 {[%emt 0:01:42]} 29. Rf6 {[%emt 0:02:28]} Nd4 {[%emt 0:00:27]} 30. Rf8+ {[%emt 0:00:10]} 1-0

[Event "EYCC Open-U14 2019"]
[Site "Bratislava"]
[Date "2019.08.08"]
[Round "7.32"]
[White "Antal, Hunor-Zoltan"]
[Black "Stalmach, Richard"]
[Result "1-0"]
[ECO "E68"]
[WhiteElo "1980"]
[BlackElo "2381"]
[Annotator "NA"]
[PlyCount "113"]
[EventDate "2019.08.02"]
[EventType "swiss"]
[EventCountry "SVK"]
[SourceTitle "playchess.com"]
[Source "ChessBase"]
[SourceQuality "1"]
[TimeControl "40/5400+30:1800+30"]

1. d4 {[%emt 0:00:00]} Nf6 {[%emt 0:00:00]} 2. Nf3 {[%emt 0:00:00]} g6 {[%emt 0:00:00]} 3. c4 {[%emt 0:00:00]} Bg7 {[%emt 0:00:00]} 4. g3 {[%emt 0:00:00]} O-O {[%emt 0:00:00]} 5. Bg2 {[%emt 0:00:01]} d6 {[%emt 0:00:02]} 6. Nc3 {[%emt 0:00:07]} Nbd7 {[%emt 0:00:20]} 7. O-O {[%emt 0:00:14]} e5 {[%emt 0:00:16]} 8. e4 {[%emt 0:00:09]} exd4 {[%emt 0:00:07]} 9. Nxd4 {[%emt 0:00:10]} c6 {[%emt 0:00:05]} 10. h3 {[%emt 0:01:40]} Re8 {[%emt 0:00:09]} 11. Be3 {[%emt 0:00:42]} a5 {[%emt 0:01:08]} 12. Rc1 {[%emt 0:08:14]} Nc5 {[%emt 0:00:49]} 13. Qc2 {[%emt 0:00:39]} a4 {[%emt 0:01:15]} 14. Rfd1 {[%emt 0:02:08]} Qa5 {[%emt 0:00:51]} 15. Nde2 {[%emt 0:03:59]} Be6 {[%emt 0:07:58]} 16. Rxd6 {[%emt 0:32:40]} Bxc4 {[%emt 0:05:46]} 17. Rcd1 {[%emt 0:00:53]} Bxe2 {[%emt 0:25:57]} 18. Qxe2 {[%emt 0:00:16]} Nfxe4 {[%emt 0:02:47]} 19. Nxe4 {[%emt 0:00:09]} Nxe4 {[%emt 0:00:03]} 20. Bxe4 {[%emt 0:00:13]} Rxe4 {[%emt 0:00:12]} 21. Rd7 {[%emt 0:00:23]} Qb4 {[%emt 0:25:23]} 22. Qf3 {[%emt 0:03:14]} f5 {[%emt 0:00:35]} 23. g4 {[%emt 0:12:25]} f4 {[%emt 0:07:55]} 24. Bd2 {[%emt 0:02:45]} Qc4 {[%emt 0:01:38]} 25. b3 {[%emt 0:04:17]} axb3 {[%emt 0:02:23]} 26. axb3 {[%emt 0:00:06]} Qe6 {[%emt 0:01:15]} 27. Bc3 {[%emt 0:03:21]} Bf8 {[%emt 0:01:57]} 28. Rxb7 {[%emt 0:01:23]} Re8 29. Rdd7 {[%emt 0:05:18]} Re7 {[%emt 0:10:22]} 30. Rxe7 {[%emt 0:01:15]} Bxe7 {[%emt 0:00:01]} 31. Rb8+ {[%emt 0:00:54]} Kf7 {[%emt 0:00:47]} 32. Rh8 {[%emt 0:00:46]} Qd5 {[%emt 0:00:01]} 33. Rxh7+ {[%emt 0:01:29]} Ke8 {[%emt 0:00:30]} 34. Kg2 {[%emt 0:01:21]} Bc5 {[%emt 0:00:51]} 35. Rh8+ {[%emt 0:00:32]} Ke7 {[%emt 0:00:14]} 36. Rh7+ {[%emt 0:00:59]} Ke8 {[%emt 0:00:04]} 37. Rh8+ {[%emt 0:05:33]} Ke7 {[%emt 0:00:03]} 38. Rh7+ {[%emt 0:03:52]} Ke6 {[%emt 0:01:04]} 39. Rh8 {[%emt 0:01:26]} Kd7 {[%emt 0:02:12]} 40. Ba5 {[%emt 0:00:00]} Ke7 {[%emt 0:00:00]} 41. Rd8 {[%emt 0:07:14]} Bd6 {[%emt 0:04:39]} 42. Bc7 {[%emt 0:00:21]} Bxc7 {[%emt 0:16:10]} 43. Rxd5 {[%emt 0:00:13]} cxd5 {[%emt 0:00:03]} 44. h4 {[%emt 0:00:28]} Bd6 {[%emt 0:01:11]} 45. h5 {[%emt 0:00:23]} gxh5 {[%emt 0:00:03]} 46. gxh5 {[%emt 0:00:06]} Re5 {[%emt 0:00:04]} 47. h6 {[%emt 0:00:20]} Rg5+ {[%emt 0:00:03]} 48. Kh3 {[%emt 0:00:14]} Kf6 {[%emt 0:00:21]} 49. Qc3+ {[%emt 0:01:58]} Be5 {[%emt 0:01:06]} 50. Qc6+ {[%emt 0:00:06]} Kf5 {[%emt 0:00:05]} 51. Qxd5 {[%emt 0:00:12]} Rh5+ {[%emt 0:00:23]} 52. Kg2 {[%emt 0:00:07]} Rxh6 {[%emt 0:00:06]} 53. b4 {[%emt 0:00:24]} Rg6+ {[%emt 0:01:19]} 54. Kf3 {[%emt 0:00:13]} Kf6 {[%emt 0:00:32]} 55. Ke4 {[%emt 0:00:18]} Rg5 {[%emt 0:00:24]} 56. Qd8+ {[%emt 0:00:16]} Kg6 {[%emt 0:00:04]} 57. Qxg5+ {[%emt 0:00:15]} 1-0

[Event "EYCC Open-U14 2019"]
[Site "Bratislava"]
[Date "2019.08.08"]
[Round "7.33"]
[White "Stamatiou, Rodolfos"]
[Black "Dahl, Max"]
[Result "1/2-1/2"]
[ECO "C14"]
[WhiteElo "2121"]
[BlackElo "1981"]
[Annotator "NA"]
[PlyCount "144"]
[EventDate "2019.08.02"]
[EventType "swiss"]
[EventCountry "SVK"]
[SourceTitle "playchess.com"]
[Source "ChessBase"]
[SourceQuality "1"]
[TimeControl "40/5400+30:1800+30"]

1. e4 {[%emt 0:00:00]} e6 {[%emt 0:00:00]} 2. d4 {[%emt 0:00:00]} d5 {[%emt 0:00:00]} 3. Nc3 {[%emt 0:00:03]} Nf6 {[%emt 0:00:18]} 4. Bg5 {[%emt 0:00:33]} Be7 {[%emt 0:00:57]} 5. e5 {[%emt 0:01:55]} Nfd7 {[%emt 0:01:06]} 6. Bxe7 {[%emt 0:00:15]} Qxe7 {[%emt 0:00:11]} 7. f4 {[%emt 0:00:55]} O-O {[%emt 0:02:31]} 8. Qh5 {[%emt 0:05:02]} f6 {[%emt 0:13:53]} 9. Bd3 {[%emt 0:04:41]} g6 {[%emt 0:07:11]} 10. Qh6 {[%emt 0:07:10]} c5 {[%emt 0:11:20]} 11. exf6 {[%emt 0:14:20]} Rxf6 {[%emt 0:13:55]} 12. Nf3 {[%emt 0:07:25]} Nc6 {[%emt 0:07:02]} 13. dxc5 {[%emt 0:03:49]} Nxc5 {[%emt 0:02:37]} 14. O-O-O {[%emt 0:04:02]} Nxd3+ {[%emt 0:02:02]} 15. Rxd3 {[%emt 0:02:01]} Qf8 {[%emt 0:06:34]} 16. Qxf8+ {[%emt 0:00:48]} Rxf8 {[%emt 0:00:18]} 17. g3 {[%emt 0:00:54]} Bd7 {[%emt 0:02:53]} 18. Ne2 {[%emt 0:04:46]} Rac8 {[%emt 0:02:18]} 19. Ned4 {[%emt 0:02:00]} Rfe8 {[%emt 0:03:00]} 20. Nxc6 {[%emt 0:02:53]} Bxc6 {[%emt 0:02:54]} 21. Re1 {[%emt 0:01:59]} Bd7 {[%emt 0:05:44]} 22. c3 {[%emt 0:01:26]} b5 {[%emt 0:04:21]} 23. b4 {[%emt 0:05:12]} a5 {[%emt 0:03:15]} 24. a3 {[%emt 0:02:28]} axb4 {[%emt 0:00:35]} 25. axb4 {[%emt 0:00:02]} Ra8 {[%emt 0:01:25]} 26. Kb2 {[%emt 0:00:22]} Ra7 {[%emt 0:02:21]} 27. Ra1 {[%emt 0:01:00]} Rxa1 {[%emt 0:00:21]} 28. Kxa1 {[%emt 0:00:01]} Ra8+ {[%emt 0:00:55]} 29. Kb2 {[%emt 0:00:02]} Kf8 {[%emt 0:02:23]} 30. Ne5 {[%emt 0:04:50]} Ke7 {[%emt 0:00:29]} 31. h4 {[%emt 0:01:17]} Kd6 {[%emt 0:00:58]} 32. Nf7+ {[%emt 0:04:09]} Ke7 {[%emt 0:00:26]} 33. Ng5 {[%emt 0:01:02]} h6 {[%emt 0:00:16]} 34. Nf3 {[%emt 0:00:10]} Kd6 {[%emt 0:01:17]} 35. Ne5 {[%emt 0:01:41]} Be8 {[%emt 0:00:20]} 36. Ng4 {[%emt 0:01:07]} h5 {[%emt 0:00:23]} 37. Ne5 {[%emt 0:00:59]} Ra7 {[%emt 0:00:45]} 38. Nf3 {[%emt 0:02:44]} Bd7 {[%emt 0:00:50]} 39. Rd1 {[%emt 0:01:23]} Ra8 {[%emt 0:00:19]} 40. Rg1 {[%emt 0:00:00]} Bc6 {[%emt 0:00:00]} 41. Ne5 {[%emt 0:03:50]} Be8 {[%emt 0:03:04]} 42. Re1 {[%emt 0:10:05]} Ra7 {[%emt 0:07:13]} 43. Nd3 {[%emt 0:02:14]} Bd7 {[%emt 0:03:27]} 44. Nc5 {[%emt 0:00:53]} Ke7 {[%emt 0:01:40]} 45. Nb3 {[%emt 0:01:48]} Kf6 {[%emt 0:03:20]} 46. Re5 {[%emt 0:01:51]} Be8 {[%emt 0:02:48]} 47. Na5 {[%emt 0:03:12]} Rd7 {[%emt 0:02:50]} 48. Nc6 {[%emt 0:02:33]} Rd6 {[%emt 0:01:04]} 49. Nd4 {[%emt 0:00:32]} Ra6 {[%emt 0:00:40]} 50. Nb3 {[%emt 0:01:43]} Ra7 {[%emt 0:00:27]} 51. Nc5 {[%emt 0:01:22]} Bd7 {[%emt 0:00:24]} 52. Rg5 {[%emt 0:04:52]} Be8 {[%emt 0:01:03]} 53. Nd3 {[%emt 0:02:17]} Rd7 {[%emt 0:03:35]} 54. Ne5 {[%emt 0:02:01]} Rh7 {[%emt 0:00:30]} 55. Kc2 {[%emt 0:01:11]} Ra7 {[%emt 0:00:28]} 56. g4 {[%emt 0:01:59]} Rh7 {[%emt 0:02:35]} 57. gxh5 {[%emt 0:03:04]} Rxh5 58. Ng4+ {[%emt 0:00:42]} Ke7 {[%emt 0:02:16]} 59. Rxh5 {[%emt 0:01:56]} gxh5 {[%emt 0:00:07]} 60. Ne3 {[%emt 0:00:30]} Bg6+ {[%emt 0:00:57]} 61. Kd2 {[%emt 0:00:36]} Kd6 {[%emt 0:01:15]} 62. Nf1 {[%emt 0:01:05]} Be4 {[%emt 0:00:40]} 63. Ng3 {[%emt 0:00:47]} Bg6 {[%emt 0:00:13]} 64. Ke3 {[%emt 0:00:37]} e5 {[%emt 0:01:31]} 65. Ne2 {[%emt 0:01:16]} Ke6 {[%emt 0:00:54]} 66. fxe5 {[%emt 0:01:31]} Kxe5 {[%emt 0:00:05]} 67. Nf4 {[%emt 0:00:59]} Be8 {[%emt 0:00:32]} 68. Nd3+ {[%emt 0:00:28]} Kf5 {[%emt 0:00:45]} 69. Nf2 {[%emt 0:00:24]} Ke5 {[%emt 0:00:07]} 70. Nd3+ {[%emt 0:02:01]} Kf5 {[%emt 0:00:05]} 71. Nf2 {[%emt 0:01:10]} Ke5 {[%emt 0:00:24]} 72. Nh3 {[%emt 0:00:32]} Kf5 {[%emt 0:00:38] Ke4+ Ke5+} 1/2-1/2

[Event "EYCC Open-U14 2019"]
[Site "Bratislava"]
[Date "2019.08.08"]
[Round "7.34"]
[White "Cuttoli, Alexandre"]
[Black "Czernek, Tymon"]
[Result "0-1"]
[ECO "A57"]
[WhiteElo "1848"]
[BlackElo "2003"]
[Annotator "NA"]
[PlyCount "92"]
[EventDate "2019.08.02"]
[EventType "swiss"]
[EventCountry "SVK"]
[SourceTitle "playchess.com"]
[Source "ChessBase"]
[SourceQuality "1"]
[TimeControl "40/5400+30:1800+30"]

1. d4 {[%emt 0:00:00]} Nf6 2. c4 c5 {[%emt 0:00:00]} 3. d5 {[%emt 0:00:00]} b5 {[%emt 0:00:00]} 4. cxb5 {[%emt 0:00:00]} a6 {[%emt 0:00:00]} 5. Nc3 {[%emt 0:00:12]} axb5 {[%emt 0:09:44]} 6. e4 {[%emt 0:00:16]} b4 {[%emt 0:01:26]} 7. Nb5 {[%emt 0:00:16]} d6 {[%emt 0:02:52]} 8. Bc4 {[%emt 0:01:00]} Nbd7 {[%emt 0:03:10]} 9. Nf3 {[%emt 0:01:00]} Nb6 {[%emt 0:01:59]} 10. Bd3 {[%emt 0:12:02]} g6 {[%emt 0:05:57]} 11. O-O {[%emt 0:08:52]} Bg7 12. Bg5 {[%emt 0:16:53]} O-O {[%emt 0:01:38]} 13. a3 {[%emt 0:10:40]} Bd7 {[%emt 0:03:10]} 14. Qe2 {[%emt 0:03:19]} c4 {[%emt 0:03:00]} 15. Bxc4 {[%emt 0:01:03]} Nxc4 {[%emt 0:00:06]} 16. Qxc4 {[%emt 0:00:44]} Bxb5 {[%emt 0:00:27]} 17. Qxb5 {[%emt 0:00:13]} Nxe4 {[%emt 0:00:03]} 18. Bc1 {[%emt 0:07:14]} bxa3 {[%emt 0:00:38]} 19. Rxa3 {[%emt 0:00:35]} Rxa3 {[%emt 0:00:21]} 20. bxa3 {[%emt 0:00:11]} Nc3 {[%emt 0:00:44]} 21. Qb7 {[%emt 0:08:28]} Qc8 {[%emt 0:00:47]} 22. Qxc8 {[%emt 0:11:15]} Rxc8 {[%emt 0:00:07]} 23. Bg5 {[%emt 0:00:49]} Nxd5 {[%emt 0:00:08]} 24. Rd1 {[%emt 0:00:57]} e6 {[%emt 0:00:12]} 25. h3 {[%emt 0:00:53]} h6 {[%emt 0:02:31]} 26. Bd2 {[%emt 0:00:23]} Ra8 {[%emt 0:00:26]} 27. Bb4 {[%emt 0:00:23]} Ra6 {[%emt 0:02:29]} 28. Nd4 {[%emt 0:01:11]} Bxd4 {[%emt 0:03:36]} 29. Rxd4 {[%emt 0:00:04]} Nxb4 {[%emt 0:00:04]} 30. axb4 {[%emt 0:00:11]} d5 {[%emt 0:00:26]} 31. Rh4 {[%emt 0:01:48]} Kg7 {[%emt 0:00:26]} 32. Rd4 {[%emt 0:05:10]} Kf6 33. f4 {[%emt 0:00:14]} Ra2 {[%emt 0:01:55]} 34. g3 {[%emt 0:00:11]} Ke7 {[%emt 0:00:18]} 35. Kf1 {[%emt 0:00:08]} Kd6 {[%emt 0:00:14]} 36. Rd3 {[%emt 0:01:03]} Rb2 {[%emt 0:00:24]} 37. Rd4 {[%emt 0:00:13]} f6 {[%emt 0:00:21]} 38. h4 {[%emt 0:00:22]} h5 {[%emt 0:00:09]} 39. Kg1 {[%emt 0:00:50]} e5 {[%emt 0:00:53]} 40. fxe5+ {[%emt 0:00:00]} fxe5 {[%emt 0:00:00]} 41. Rd3 {[%emt 0:00:25]} Rxb4 {[%emt 0:00:26]} 42. Kg2 {[%emt 0:00:07]} Rb2+ {[%emt 0:00:14]} 43. Kh3 {[%emt 0:00:04]} e4 {[%emt 0:00:43]} 44. Re3 {[%emt 0:00:38]} Ke5 {[%emt 0:00:17]} 45. Re1 {[%emt 0:00:28]} d4 {[%emt 0:00:34]} 46. g4 {[%emt 0:00:25]} Rb3+ {[%emt 0:00:16]} 0-1